bitfinex/quotes_ETHUSD_20241104
["timestamp","ask_amount","ask_price","bid_price","bid_amount"]
[1730742226480,0.57551729,2427.4,2427.1,4.12013]
[1730742226633,0.14331663,2427.4,2427.0,4.12026]
[1730742226839,4.26295663,2427.4,2427.1,0.12893475]
[1730742227041,4.72908,2427.3,2426.8,4.12052]
[1730742227375,0.1431722,2427.2,2426.9,0.12894506]
[1730742227537,4.2632622,2427.2,2426.6,4.92641]
[1730742227739,0.0592,2427.0,2426.7,0.12894848]
[1730742228080,0.0592,2427.0,2426.7,4.12081]
[1730742228252,0.0592,2427.0,2426.8,4.12065]
[1730742228253,0.1430988,2426.9,2426.8,4.12065]
[1730742228862,0.55,2427.1,2426.9,4.12047]
[1730742229175,0.69305143,2427.0,2426.9,4.12047]
[1730742229374,0.69305143,2427.0,2426.8,4.12065]
[1730742230140,0.69305143,2427.0,2426.8,8.24123]
[1730742230553,0.69305143,2427.0,2426.8,4.12058]
[1730742231375,0.14305143,2427.0,2426.8,8.24115]
[1730742231588,0.14305143,2427.0,2426.9,4.12048]
[1730742231882,4.1789,2427.4,2427.0,4.1203]
[1730742232674,0.55,2427.3,2427.0,4.1203]
[1730742232858,4.66991,2427.3,2426.8,4.12058]
[1730742233063,0.0592,2427.2,2426.8,4.12058]
[1730742233469,0.0592,2427.2,2426.9,4.12044]
[1730742233681,0.1430372,2427.1,2426.9,4.12044]
[1730742234947,0.1430372,2427.1,2426.8,4.12058]
[1730742237782,0.1430372,2427.1,2426.8,8.24115]
[1730742237944,0.1430372,2427.1,2426.8,4.12057]
[1730742238583,0.1430372,2427.1,2426.8,4.12056]
[1730742238986,0.1430372,2427.1,2426.8,8.2411]
[1730742239751,0.1430372,2427.1,2426.8,4.12054]
[1730742239948,0.1430372,2427.1,2426.6,0.7722]
[1730742240286,0.55,2427.0,2426.7,4.12074]
[1730742240454,0.14151305,2426.9,2426.7,4.12074]
[1730742240877,0.62268536,2426.9,2426.2,3.0]
[1730742241083,4.20542281,2426.9,2426.6,4.12088]
[1730742241400,0.14151305,2426.9,2426.6,4.12088]
[1730742241571,0.14151305,2426.9,2426.7,4.12073]
[1730742242169,0.14151305,2426.9,2426.8,4.12065]
[1730742242782,0.14151305,2426.9,2426.7,4.92493]
[1730742245309,0.14151305,2426.9,2426.5,4.93891]
[1730742245601,0.14151305,2426.9,2426.6,4.12097]
[1730742245602,0.0592,2426.8,2426.6,4.12097]
[1730742245898,0.14105323,2426.7,2426.5,4.12112]
[1730742246104,0.0592,2426.8,2426.5,8.24214]
[1730742246275,0.14105323,2426.6,2426.5,4.12102]
[1730742246470,0.0592,2426.8,2426.5,4.12102]
[1730742246664,0.14105323,2426.6,2426.5,4.12102]
[1730742246896,0.0592,2426.8,2426.5,4.12102]
[1730742247214,0.14105323,2426.7,2426.5,4.12102]
[1730742247712,0.14105323,2426.6,2426.5,4.12102]
[1730742248213,0.0592,2426.8,2426.6,4.12097]
[1730742248803,0.14105323,2426.7,2426.6,4.12097]
[1730742249513,4.72955,2427.0,2426.6,4.12097]
[1730742249684,0.14105323,2426.9,2426.6,4.12097]
[1730742250011,0.14105323,2426.9,2426.8,4.87545]
[1730742251722,0.55,2427.2,2426.9,4.1204]
[1730742251937,0.0592,2427.5,2427.1,4.12]
[1730742252096,4.1787,2427.5,2427.1,4.12]
[1730742252299,4.1787,2427.5,2427.1,8.24005]
[1730742252495,4.1787,2427.5,2427.1,4.12]
[1730742252736,0.0592,2427.5,2427.2,4.11989]
[1730742253300,4.17867,2427.5,2427.1,4.9524]
[1730742253502,4.17867,2427.5,2427.0,4.12028]
[1730742253503,4.11969,2427.4,2427.0,4.12028]
[1730742258357,8.24018,2427.2,2426.7,4.12074]
[1730742258546,4.12014,2427.1,2426.7,4.12074]
[1730742258743,4.12014,2427.1,2426.6,0.7854]
[1730742258744,4.17957,2427.0,2426.6,4.90637]
[1730742259054,5.009541,2427.0,2426.6,4.12097]
[1730742259611,4.67048,2426.9,2426.6,4.12097]
[1730742259815,4.67048,2426.9,2426.5,4.12114]
[1730742260654,4.12065,2426.8,2426.4,4.12128]
[1730742260863,4.17989,2426.8,2426.4,4.12123]
[1730742263358,0.0592,2426.8,2426.5,4.12108]
[1730742263533,4.72971,2426.9,2426.5,4.12108]
[1730742263733,0.14060742,2426.7,2426.5,4.12108]
[1730742264035,0.14060742,2426.6,2426.5,4.12108]
[1730742264235,4.72971,2426.9,2426.5,4.12108]
[1730742264440,0.14060742,2426.8,2426.5,4.12108]
[1730742267666,0.14060742,2426.8,2426.5,8.24216]
[1730742267867,0.14060742,2426.8,2426.5,4.12108]
[1730742268455,4.32052742,2426.8,2426.4,4.12127]
[1730742268630,5.57790191,2426.8,2426.4,4.12127]
[1730742268830,4.1212,2426.5,2426.2,0.7534]
[1730742269077,0.14061453,2426.4,2426.1,8.24345]
[1730742269421,0.14061453,2426.4,2426.2,4.12158]
[1730742269603,0.14061453,2426.4,2426.3,4.1215]
[1730742269803,0.55,2426.6,2426.3,4.1215]
[1730742270027,0.14061453,2426.4,2426.3,4.1215]
[1730742270176,0.55,2426.6,2426.3,4.1215]
[1730742270372,0.14061453,2426.4,2426.3,4.1215]
[1730742270605,4.67099,2426.6,2426.3,4.1215]
[1730742270809,0.14061453,2426.4,2426.3,4.1215]
[1730742270987,4.12099,2426.6,2426.3,4.1215]
[1730742271480,0.14061453,2426.5,2426.3,4.1215]
[1730742275594,0.14061453,2426.5,2426.2,4.12164]
[1730742275794,0.0592,2426.4,2426.2,4.12162]
[1730742276015,0.14061453,2426.5,2426.2,4.12162]
[1730742276332,0.55,2426.5,2426.2,4.12162]
[1730742276554,0.14057426,2426.4,2426.2,4.12162]
[1730742277634,0.14057426,2426.4,2426.3,4.1215]
[1730742277806,0.0592,2426.6,2426.3,4.1215]
[1730742278007,0.14057663,2426.4,2426.3,4.1215]
[1730742278542,0.0592,2426.6,2426.3,4.1215]
[1730742278699,0.14056953,2426.4,2426.3,4.1215]
[1730742278899,0.0592,2426.6,2426.3,4.1215]
[1730742279101,0.14056953,2426.4,2426.3,4.1215]
[1730742279409,0.0592,2426.6,2426.3,4.1215]
[1730742279594,0.14056953,2426.4,2426.3,4.1215]
[1730742279800,0.0592,2426.6,2426.3,4.12141]
[1730742280538,0.14056953,2426.5,2426.3,4.12141]
[1730742284405,0.14056953,2426.5,2426.2,4.1216]
[1730742284627,0.14056953,2426.5,2426.1,4.12168]
[1730742284628,5.10593948,2426.5,2426.1,4.12168]
[1730742284835,4.26177953,2426.5,2426.0,4.87781]
[1730742285034,4.26177953,2426.5,2426.0,4.12199]
[1730742285035,4.18062,2426.4,2426.0,4.12199]
[1730742285236,0.0592,2426.4,2426.1,4.12181]
[1730742285426,0.14052215,2426.3,2426.1,4.12181]
[1730742286738,0.14052215,2426.3,2426.0,4.12197]
[1730742288731,0.14052215,2426.3,2426.2,4.12167]
[1730742288917,4.18023,2426.6,2426.2,4.12167]
[1730742289120,0.97058165,2426.5,2426.2,4.12167]
[1730742289541,5.09179165,2426.5,2426.1,4.12175]
[1730742289823,0.0592,2426.3,2425.9,4.88209]
[1730742290028,0.0592,2426.3,2426.0,0.12899555]
[1730742290029,0.14048661,2426.2,2426.0,0.12899555]
[1730742290224,0.14048661,2426.2,2425.9,4.12209]
[1730742290225,1.34471491,2426.3,2425.9,4.12209]
[1730742290573,0.14045104,2426.2,2425.9,4.12209]
[1730742290864,1.34471491,2426.3,2425.9,8.24417]
[1730742291019,0.14045104,2426.1,2426.0,4.12201]
[1730742291346,1.34471491,2426.3,2426.0,4.12201]
[1730742291551,0.14045581,2426.1,2426.0,4.12201]
[1730742291752,1.34471491,2426.3,2426.0,4.12201]
[1730742292073,0.90488724,2426.2,2426.0,4.12201]
[1730742292267,0.14045581,2426.1,2426.0,4.12201]
[1730742293764,0.0592,2426.3,2426.0,4.12201]
[1730742293985,0.14045581,2426.1,2425.9,4.12208]
[1730742294173,0.0592,2426.3,2425.9,8.24417]
[1730742294333,0.14045581,2426.0,2425.9,8.24417]
[1730742294533,0.889383,2426.3,2425.9,8.37316524]
[1730742294761,0.14045581,2426.2,2426.0,4.122]
[1730742295128,0.889383,2426.3,2426.0,4.122]
[1730742295358,0.14045581,2426.1,2426.0,4.122]
[1730742295558,0.889383,2426.3,2426.0,4.122]
[1730742295772,0.0592,2426.5,2426.1,4.93948]
[1730742295970,0.0592,2426.5,2425.9,0.8178]
[1730742295971,0.14045581,2426.2,2425.9,0.8178]
[1730742296171,4.12134,2426.4,2425.9,4.93987]
[1730742296324,0.14042261,2426.1,2425.9,0.8178]
[1730742296529,7.70388745,2426.6,2425.8,4.12226]
[1730742296530,4.18093,2426.2,2425.8,4.12226]
[1730742296760,0.14042261,2426.0,2425.8,4.12226]
[1730742296957,1.24770174,2426.2,2425.8,4.12226]
[1730742297233,1.24770174,2426.2,2425.9,4.12216]
[1730742297428,0.14039417,2426.1,2425.9,4.12216]
[1730742300505,0.14039417,2426.1,2426.0,4.12201]
[1730742301006,0.14038944,2426.1,2426.0,4.12201]
[1730742301206,0.14038944,2426.1,2425.9,4.12203]
[1730742301406,4.67152,2426.3,2425.9,4.12203]
[1730742301704,0.14036337,2426.0,2425.9,4.12203]
[1730742302006,4.67152,2426.3,2425.9,4.25102992]
[1730742302204,0.14036337,2426.0,2425.9,4.12203]
[1730742302505,4.67152,2426.3,2425.9,0.1290005]
[1730742302506,4.1219,2426.1,2425.9,0.1290005]
[1730742302658,1.32300412,2426.0,2425.7,0.8178]
[1730742302863,4.26238337,2426.0,2425.7,0.8178]
[1730742303167,3.58273745,2425.9,2425.4,0.7702]
[1730742303357,3.58273745,2425.9,2424.7,1.78476098]
[1730742303358,4.12276,2425.6,2425.5,0.12901753]
[1730742303566,4.12289,2425.5,2425.2,0.7702]
[1730742303808,11.96860054,2425.6,2425.2,4.89353]
[1730742304009,8.9082775,2425.6,2425.3,0.12903197]
[1730742304303,0.14032309,2425.5,2425.0,4.12366]
[1730742304505,4.32246309,2425.5,2425.1,4.45901497]
[1730742304688,0.19952309,2425.5,2425.2,4.25230268]
[1730742304893,0.19952309,2425.5,2425.3,4.25219128]
[1730742305100,7.70576745,2425.4,2425.0,4.94303]
[1730742305418,0.14020692,2425.3,2425.1,4.12354]
[1730742305797,0.0592,2425.5,2425.1,4.12354]
[1730742305976,0.14009551,2425.2,2425.1,4.12354]
[1730742306182,0.0592,2425.5,2425.1,4.12354]
[1730742306381,0.0592,2425.5,2425.2,4.12335]
[1730742306845,0.55,2425.6,2425.3,4.12318]
[1730742307255,0.0592,2425.7,2425.3,4.87708]
[1730742307548,4.12245,2425.8,2425.4,4.123]
[1730742308641,0.14006471,2425.7,2425.4,4.123]
[1730742308871,0.14006471,2425.7,2425.3,9.00019]
[1730742309069,8.24493,2425.8,2425.3,9.00012]
[1730742309379,4.18222,2425.5,2425.1,0.8059]
[1730742309548,4.12321,2425.3,2424.9,4.92967]
[1730742309737,0.14007417,2425.2,2424.9,4.92967]
[1730742309940,4.12321,2425.3,2424.9,4.92967]
[1730742310158,0.14007417,2425.2,2424.9,4.92967]
[1730742310384,4.12321,2425.3,2424.9,9.05347]
[1730742310586,0.14007417,2425.1,2425.0,4.1237]
[1730742310789,5.50463875,2425.4,2425.0,4.1237]
[1730742310989,0.14007417,2425.1,2425.0,4.1237]
[1730742311193,4.1233,2425.3,2424.9,4.92974]
[1730742311407,0.14007417,2425.1,2424.9,0.8059]
[1730742311688,7.70603745,2425.3,2424.9,4.92976]
[1730742311895,0.13998881,2425.0,2424.9,4.92976]
[1730742312390,5.50456875,2425.4,2425.0,4.12369]
[1730742312593,0.13998881,2425.0,2424.9,9.0535]
[1730742312794,5.50459875,2425.4,2424.9,4.92964]
[1730742312973,5.50459875,2425.4,2425.0,4.1237]
[1730742313367,5.50459875,2425.4,2424.2,7.13491]
[1730742313368,5.0,2424.0,2423.8,0.85779774]
[1730742313568,4.12595,2423.7,2423.3,0.64578913]
[1730742313767,6.52818934,2423.9,2423.1,0.06190717]
[1730742313768,3.58273745,2423.6,2423.1,0.12912279]
[1730742313973,7.70882745,2423.6,2423.0,0.7517]
[1730742314254,7.70882745,2423.6,2423.0,4.87869]
[1730742314481,8.25882745,2423.6,2423.0,0.7517]
[1730742315003,8.25882745,2423.6,2423.0,4.87872]
[1730742315300,8.25882745,2423.6,2423.0,0.7517]
[1730742317494,8.25882745,2423.6,2423.0,4.87869]
[1730742317696,8.25882745,2423.6,2423.0,9.00572]
[1730742317854,8.25882745,2423.6,2423.0,4.87869]
[1730742319759,8.25882745,2423.6,2422.7,0.77]
[1730742320058,4.12708,2423.1,2422.7,0.77]
[1730742320269,3.58273745,2422.8,2422.7,0.77]
[1730742320968,3.58273745,2423.0,2422.7,0.77]
[1730742321759,7.70986745,2423.0,2422.7,0.77]
[1730742321959,3.58273745,2422.8,2422.7,0.77]
[1730742322155,3.58273745,2422.8,2422.5,4.91205]
[1730742322385,3.58273745,2422.8,2422.5,0.7841]
[1730742322958,3.58273745,2422.8,2422.5,4.91204]
[1730742323502,0.0592,2423.4,2422.5,0.86664996]
[1730742323664,0.0592,2423.4,2422.9,4.12719]
[1730742323859,4.18571,2423.4,2422.9,4.12719]
[1730742324267,4.12678,2423.2,2422.8,4.12729]
[1730742324483,8.54062445,2423.3,2422.8,4.12729]
[1730742324690,4.12706,2423.1,2422.5,4.91191]
[1730742325003,4.12706,2423.1,2422.6,4.1277]
[1730742325163,7.70979745,2423.1,2422.6,4.1277]
[1730742325594,4.12714,2423.0,2422.6,4.1277]
[1730742325795,3.58273745,2422.9,2422.6,4.12779]
[1730742326020,3.58273745,2422.9,2422.5,0.7841]
[1730742326335,3.58273745,2422.9,2422.5,4.91203]
[1730742327691,3.58273745,2422.9,2422.6,4.12778]
[1730742328040,4.9045279,2423.1,2422.6,4.12768]
[1730742328241,4.41394445,2423.3,2422.7,0.08255002]
[1730742328405,4.12685,2423.2,2422.7,4.12751]
[1730742328939,4.12695,2423.1,2422.7,4.12751]
[1730742329176,3.58273745,2422.9,2422.5,4.91204]
[1730742329529,7.71001745,2422.9,2422.5,4.91204]
[1730742329730,3.58273745,2422.7,2422.3,4.1873255]
[1730742330096,3.58273745,2422.7,2422.4,4.12811]
[1730742330419,3.64193745,2422.9,2422.5,4.12789]
[1730742330623,4.4188522,2422.9,2422.5,4.12789]
[1730742332104,4.4188522,2422.9,2422.6,4.12779]
[1730742332304,4.1269,2423.2,2422.4,4.12798]
[1730742332305,7.70977745,2423.1,2422.4,4.12798]
[1730742332523,7.70977745,2423.1,2422.5,4.12796]
[1730742333222,7.70977745,2423.1,2422.5,4.12787]
[1730742333223,4.12721,2423.0,2422.5,4.12787]
[1730742333423,4.12721,2423.0,2422.6,4.12769]
[1730742333635,3.58273745,2422.9,2422.3,4.1873455]
[1730742333801,4.12752,2422.8,2422.4,4.12805]
[1730742333997,4.12794,2422.6,2422.3,0.0591655]
[1730742334302,7.71067745,2422.6,2422.3,0.0591655]
[1730742334742,4.12794,2422.6,2422.3,0.0591655]
[1730742335237,4.12805,2422.5,2422.3,0.0591655]
[1730742335455,1.24479275,2422.5,2422.3,0.0591655]
[1730742335736,1.24479275,2422.5,2422.3,4.1873955]
[1730742335952,0.0592,2422.7,2422.3,4.1873955]
[1730742335953,0.0592,2422.7,2422.4,4.12813]
[1730742336842,4.18687,2422.7,2422.3,4.1874355]
[1730742337047,4.18687,2422.7,2422.3,0.0591655]
[1730742337897,4.12788,2422.6,2422.3,0.0591655]
[1730742338607,0.18982101,2422.5,2422.3,0.0591655]
[1730742339444,1.04027811,2422.5,2422.3,0.0591655]
[1730742339848,5.16824811,2422.5,2422.3,0.0591655]
[1730742340201,1.04027811,2422.5,2422.3,0.0591655]
[1730742340899,0.18982101,2422.5,2422.3,4.1874455]
[1730742341142,0.18982101,2422.5,2422.3,0.0591655]
[1730742341309,4.1869,2422.7,2422.3,4.1874655]
[1730742341643,0.18935422,2422.4,2422.3,4.1874655]
[1730742341801,4.1869,2422.7,2422.3,0.18836252]
[1730742341802,0.18935422,2422.6,2422.3,0.18836252]
[1730742342002,0.98525339,2422.6,2422.3,0.0591655]
[1730742342241,0.98525339,2422.6,2422.4,0.12919913]
[1730742342443,0.98525339,2422.6,2422.5,0.12919913]
[1730742343204,5.11304339,2422.6,2422.5,0.33591308]
[1730742343628,0.98525339,2422.6,2422.5,0.33591308]
[1730742343842,0.18935422,2422.6,2422.5,0.33591308]
[1730742344641,0.0592,2422.6,2422.5,0.33591308]
[1730742344845,0.17671398,2422.6,2422.5,0.33591308]
[1730742345209,4.18669,2422.8,2422.5,0.33591308]
[1730742345400,4.89842375,2422.9,2422.6,0.33591308]
[1730742345607,4.18638,2423.0,2422.7,0.33591308]
[1730742345839,4.18638,2423.0,2422.8,0.12919913]
[1730742346012,4.73638,2423.0,2422.9,0.12919913]
[1730742346454,0.0592,2423.0,2422.9,0.12919913]
[1730742346651,3.58273745,2423.2,2422.4,0.7827]
[1730742346652,0.55,2423.1,2422.8,4.12743]
[1730742346804,0.55,2423.1,2422.9,0.33586278]
[1730742347004,0.55,2423.1,2423.0,0.33585207]
[1730742348132,0.55,2423.1,2423.0,0.335855]
[1730742349323,3.58273745,2423.4,2423.0,4.462855]
[1730742349324,4.18563,2423.4,2423.0,4.462855]
[1730742349651,4.13586,2423.8,2423.4,4.12631]
[1730742349652,4.18504,2423.8,2423.4,4.12631]
[1730742349948,4.12558,2423.9,2423.5,4.462095]
[1730742350149,4.12558,2423.9,2423.6,0.335855]
[1730742350453,4.12558,2423.9,2423.7,0.12913005]
[1730742350454,4.12575,2423.8,2423.7,0.12913005]
[1730742350658,4.12575,2423.8,2423.7,0.33574105]
[1730742350836,4.12575,2423.8,2423.7,0.3357393]
[1730742351145,4.12575,2423.8,2423.7,0.12913005]
[1730742352159,4.67575,2423.8,2423.7,0.12913005]
[1730742352339,4.67575,2423.8,2423.0,4.12699]
[1730742352340,4.12636,2423.5,2423.0,4.12699]
[1730742352511,4.12636,2423.5,2423.1,0.33579801]
[1730742352712,4.12636,2423.5,2423.2,0.33579801]
[1730742352940,4.12636,2423.5,2423.3,0.12915308]
[1730742353142,4.12636,2423.5,2423.4,0.12915308]
[1730742353450,4.12645,2423.4,2423.0,4.12709]
[1730742353755,4.12645,2423.4,2423.1,0.33580545]
[1730742354059,0.15859823,2423.3,2423.2,0.12915733]
[1730742355328,4.83519823,2423.3,2423.2,0.12915733]
[1730742355522,4.12715,2423.0,2422.8,0.20666761]
[1730742355727,4.12715,2423.0,2422.4,0.7673]
[1730742355728,4.952554,2423.0,2422.9,0.12916856]
[1730742356255,0.98409017,2423.0,2422.9,0.12916856]
[1730742356456,0.15868617,2423.0,2422.9,0.12916856]
[1730742357160,0.55,2423.1,2422.9,0.12916856]
[1730742357359,0.15868617,2423.0,2422.7,4.12759]
[1730742357715,0.15868617,2423.0,2422.8,0.12916618]
[1730742357952,0.15868617,2423.0,2422.6,8.25546]
[1730742357953,0.15868617,2423.0,2422.9,0.12916724]
[1730742358361,5.31934379,2423.0,2422.9,0.12916724]
[1730742358655,5.31934379,2423.0,2422.9,0.12917065]
[1730742358815,5.31934379,2423.0,2422.7,0.20667406]
[1730742359012,4.12728,2422.9,2422.8,0.12917261]
[1730742359291,4.12728,2422.9,2422.4,4.89536]
[1730742359292,4.2858949,2422.9,2422.5,0.20668658]
[1730742359417,5.07808525,2422.8,2422.6,0.12918124]
[1730742359616,5.07808525,2422.8,2422.4,4.89536]
[1730742359843,0.1586149,2422.7,2422.5,0.12918343]
[1730742360154,0.1586149,2422.7,2422.6,4.25697343]
[1730742360318,0.55,2422.9,2422.6,4.25697343]
[1730742360521,0.1586149,2422.7,2422.6,4.12779]
[1730742360742,0.55,2423.0,2422.7,4.1276]
[1730742360942,0.0592,2423.2,2422.8,4.25658317]
[1730742361147,4.12647,2423.4,2422.9,4.25636713]
[1730742361316,4.12685,2423.2,2422.8,4.89843]
[1730742361527,4.12685,2423.2,2422.8,0.771]
[1730742361948,4.12685,2423.2,2422.7,4.12755]
[1730742362121,4.12685,2423.2,2422.8,4.25660976]
[1730742362316,4.12685,2423.2,2422.8,4.12744]
[1730742363359,4.6767,2423.3,2422.9,4.12728]
[1730742363960,0.55,2423.4,2423.1,4.12693]
[1730742364182,0.55,2423.4,2423.0,4.87932]
[1730742364520,4.67644,2423.4,2423.0,4.87932]
[1730742364826,0.55,2423.4,2423.0,4.87932]
[1730742365367,4.12565,2423.9,2423.2,0.7838]
[1730742365553,0.0592,2424.0,2423.6,4.12597]
[1730742365751,0.05820384,2424.0,2423.6,4.12597]
[1730742366064,4.12559,2423.9,2423.4,4.1263]
[1730742366218,4.12559,2423.9,2423.2,4.91043]
[1730742366219,4.126,2423.7,2423.2,4.91056]
[1730742366661,4.12646,2423.4,2423.0,4.12699]
[1730742367062,4.12646,2423.4,2422.9,0.8224]
[1730742367262,4.12646,2423.4,2423.0,4.1271]
[1730742367667,4.12646,2423.4,2422.9,0.8224]
[1730742367668,0.55,2423.3,2422.9,4.94955]
[1730742368110,0.55,2423.3,2422.9,4.12715]
[1730742368408,0.467646,2423.2,2422.7,4.12752]
[1730742368577,0.14280816,2423.1,2422.7,4.12752]
[1730742369274,0.14280816,2423.1,2422.8,4.12745]
[1730742369908,0.14280816,2423.1,2422.7,4.1276]
[1730742370312,4.26976816,2423.1,2422.7,4.1276]
[1730742370469,1.09004858,2423.1,2422.7,4.1276]
[1730742371282,4.12711,2423.0,2422.5,4.12783]
[1730742371482,4.12711,2423.0,2422.6,4.12766]
[1730742371678,0.14277493,2422.9,2422.6,4.12766]
[1730742371894,0.14277493,2422.9,2422.5,4.12783]
[1730742372110,0.14277493,2422.9,2422.5,8.2557]
[1730742372879,0.14277493,2422.9,2422.6,4.12776]
[1730742373084,0.14277493,2422.9,2422.5,4.12783]
[1730742373396,1.07720947,2422.9,2422.5,4.12783]
[1730742373720,1.07720947,2422.9,2422.6,4.12777]
[1730742373721,0.14277493,2422.9,2422.6,4.12777]
[1730742373881,0.14277493,2422.9,2422.7,4.12762]
[1730742374082,0.14277493,2422.9,2422.7,4.12753]
[1730742374280,0.55,2423.1,2422.8,4.12745]
[1730742374480,0.0582,2423.5,2422.4,0.7633]
[1730742374682,0.0582,2423.5,2423.1,4.12684]
[1730742374932,5.20357997,2423.5,2423.1,4.12684]
[1730742375284,1.07731997,2423.5,2423.1,4.12684]
[1730742375685,4.59672,2423.7,2423.3,4.12659]
[1730742375881,0.0582,2423.7,2423.3,4.12659]
[1730742376097,4.1258,2423.8,2423.4,4.12634]
[1730742376295,4.1258,2423.8,2423.3,4.12659]
[1730742376498,4.18457,2423.5,2423.0,4.88887]
[1730742376857,4.18457,2423.5,2423.1,4.12692]
[1730742377039,4.12656,2423.4,2422.8,4.12734]
[1730742377243,4.12671,2423.3,2422.9,4.12719]
[1730742378846,4.12686,2423.2,2422.8,4.12742]
[1730742378988,8.25345,2423.3,2422.8,4.12736]
[1730742379188,5.05288522,2423.3,2422.8,8.25472]
[1730742379631,5.05288522,2423.3,2422.9,4.12723]
[1730742380713,4.18454,2423.5,2423.0,4.12697]
[1730742380915,4.12647,2423.4,2423.0,4.12697]
[1730742381432,4.12664,2423.3,2422.9,8.25443]
[1730742381958,4.67644,2423.4,2423.0,4.12704]
[1730742382309,0.55,2423.4,2423.1,4.12693]
[1730742382752,4.18448,2423.5,2423.0,4.12695]
[1730742383054,4.18448,2423.5,2423.1,4.12691]
[1730742383753,0.14287472,2423.4,2423.1,4.12691]
[1730742384139,0.14287472,2423.4,2423.0,4.12695]
[1730742384456,4.26938472,2423.4,2423.0,8.25397]
[1730742384645,4.26938472,2423.4,2423.0,4.12695]
[1730742384841,0.14287472,2423.4,2423.0,4.12695]
[1730742385047,0.14287472,2423.4,2423.2,4.12668]
[1730742385252,0.14287472,2423.4,2423.2,4.12661]
[1730742385554,0.14287472,2423.4,2423.3,4.1266]
[1730742385726,7.18414,2423.7,2423.3,4.1266]
[1730742385916,0.14291035,2423.4,2423.3,4.1266]
[1730742386112,7.18414,2423.7,2423.3,4.1266]
[1730742386333,0.14291035,2423.4,2423.3,4.1266]
[1730742386528,1.131003,2423.6,2422.7,0.7912]
[1730742386727,0.14291035,2423.4,2423.0,4.12702]
[1730742387016,8.25272,2423.5,2423.0,8.25402]
[1730742387217,0.14290558,2423.4,2423.0,8.25402]
[1730742387518,0.14290558,2423.4,2423.0,4.127]
[1730742387861,0.14290558,2423.4,2423.1,4.12686]
[1730742388356,0.14290558,2423.4,2423.2,4.12665]
[1730742388761,4.18421,2423.7,2423.2,4.12665]
[1730742388920,0.14290085,2423.3,2423.2,4.12665]
[1730742389123,4.12616,2423.6,2423.2,4.12665]
[1730742389649,8.39557085,2423.5,2423.0,4.12699]
[1730742389953,8.39557085,2423.5,2423.0,8.25402]
[1730742390313,8.39557085,2423.5,2423.0,4.12699]
[1730742390519,9.3387348,2423.5,2423.0,4.12699]
[1730742391455,9.3387348,2423.5,2423.0,8.25402]
[1730742391770,4.18487,2423.3,2422.8,4.12733]
[1730742391917,4.12692,2423.2,2422.7,0.8323]
[1730742392117,4.12697,2423.1,2422.7,4.95988]
[1730742392659,0.14287233,2423.0,2422.7,4.95988]
[1730742393192,4.12697,2423.1,2422.7,4.95988]
[1730742393325,0.14287233,2422.9,2422.7,4.95988]
[1730742393531,4.12697,2423.1,2422.7,4.95988]
[1730742393829,0.9143269,2423.1,2422.8,4.12744]
[1730742394069,0.14277492,2423.0,2422.8,4.12744]
[1730742394568,4.1269,2423.2,2422.7,4.95988]
[1730742394769,0.14277492,2422.9,2422.7,4.95988]
[1730742394970,4.12696,2423.1,2422.7,4.95988]
[1730742395131,0.14277492,2422.8,2422.7,4.12758]
[1730742395331,0.0582,2423.3,2422.7,4.12758]
[1730742395560,0.14277492,2422.8,2422.7,4.12758]
[1730742395745,8.80375,2423.2,2422.7,4.12758]
[1730742395959,0.14277492,2422.8,2422.7,4.12758]
[1730742396171,8.80375,2423.2,2422.7,4.12758]
[1730742396475,4.12695,2423.1,2422.7,4.12758]
[1730742396767,4.26972492,2423.1,2422.7,4.12758]
[1730742398029,5.3246237,2423.1,2422.7,4.12758]
[1730742398527,0.55,2423.0,2422.5,0.8266]
[1730742398733,0.0582,2422.9,2422.5,0.8266]
[1730742399042,4.12752,2422.8,2422.5,0.8266]
[1730742399248,5.02811392,2422.8,2422.5,0.8266]
[1730742399451,0.14278918,2422.7,2422.5,0.8266]
[1730742399654,4.12779,2422.6,2422.3,0.8768655]
[1730742399827,0.14278918,2422.5,2422.3,0.8768655]
[1730742400147,4.27075918,2422.5,2422.3,0.0591655]
[1730742400482,5.05705825,2422.5,2422.3,0.0591655]
[1730742401058,0.92908825,2422.5,2422.3,0.0591655]
[1730742401401,5.05710825,2422.5,2422.3,0.0591655]
[1730742402491,0.92908825,2422.5,2422.3,0.0591655]
[1730742405120,5.05706825,2422.5,2422.3,0.0591655]
[1730742405279,4.32901918,2422.5,2422.3,0.0591655]
[1730742405485,4.12813,2422.4,2422.3,0.0591655]
[1730742405783,8.45711918,2422.5,2422.3,0.0591655]
[1730742406011,0.14258,2422.4,2422.3,0.0591655]
[1730742410310,4.703591,2422.4,2422.3,0.0591655]
[1730742410630,0.575461,2422.4,2422.3,0.0591655]
[1730742410837,4.703591,2422.4,2422.3,0.0591655]
[1730742412652,0.575461,2422.4,2422.3,0.0591655]
[1730742412850,8.90402254,2422.4,2422.3,0.0591655]
[1730742417864,11.90402254,2422.4,2422.3,0.0591655]
[1730742429255,4.87891,2422.4,2422.3,0.0591655]
[1730742429444,4.27071,2422.4,2422.3,0.0591655]
[1730742429624,0.14258,2422.4,2422.3,0.0591655]
[1730742430621,0.14258,2422.4,2422.3,0.8870655]
[1730742430856,4.12779,2422.6,2422.3,0.8870655]
[1730742431027,0.1343798,2422.4,2422.3,0.8870655]
[1730742432333,4.12779,2422.6,2422.3,0.8870655]
[1730742432534,0.1344012,2422.4,2422.3,0.8870655]
[1730742432733,4.12799,2422.5,2422.3,0.8870655]
[1730742432939,0.1344012,2422.4,2422.3,0.8870655]
[1730742433320,4.2625312,2422.4,2422.3,0.8870655]
[1730742433520,0.1344012,2422.4,2422.3,0.8870655]
[1730742433965,4.2625312,2422.4,2422.3,0.8870655]
[1730742435851,0.1344012,2422.4,2422.3,0.8870655]
[1730742436273,4.12804,2422.5,2422.3,0.8870655]
[1730742436446,0.13443213,2422.4,2422.3,0.8870655]
[1730742437032,4.26256213,2422.4,2422.3,0.8870655]
[1730742437273,0.13443213,2422.4,2422.3,0.8870655]